[Event "Seniors-LEM-65 Sachsen-Anhalt 2024"]
[Site "Magdeburg"]
[Date "2024.07.01"]
[Round "1.14"]
[White "Kluever, Horst"]
[Black "Waagener, Ulrich"]
[Result "0-1"]
[ECO "B02"]
[WhiteElo "1850"]
[BlackElo "2080"]
[Annotator "TA"]
[PlyCount "56"]
[EventDate "2024.06.25"]
[EventType "swiss"]
[EventCountry "GER"]
[SourceTitle "playchess.com"]
[Source "ChessBase"]
[SourceQuality "1"]
[TimeControl "40/5400+30:1800+30"]

{[%evp 10,56,7,8,20,0,27,10,5,-47,-13,-60,-54,-70,-77,-137,-105,-152,-65,-73,-60,-64,-68,-70,11,4,11,0,37,28,34,34,36,4,8,-4,-8,-16,0,-68,-63,-70,-59,-548,-542,-795,-786,-775,-764]} 1. e4 {[%emt 0:00:03]} Nf6 {[%emt 0:00:37]} 2. Nc3 {[%emt 0:00:44]} d5 {[%emt 0:00:42]} 3. exd5 {[%emt 0:02:31]} Nxd5 {[%emt 0:00:13]} 4. Nxd5 {[%emt 0:01:31]} Qxd5 {[%emt 0:00:10]} 5. d4 {[%emt 0:00:22]} Nc6 {[%emt 0:02:34]} 6. Be3 {[%emt 0:00:27]} g6 {[%emt 0:08:01]} 7. a3 {[%emt 0:01:24]} Bf5 {[%emt 0:05:52]} 8. Nf3 {[%emt 0:04:37]} Bg7 {[%emt 0:05:53] The position is equal.} 9. Qd2 {[%emt 0:09:03]} (9. c3 $11) 9... O-O {[%emt 0:05:37]} 10. c4 {[%emt 0:03:45]} (10. Rd1 $11 {feels stronger.}) 10... Qe4 $15 {[%emt 0:02:16]} 11. Ng5 {[%emt 0:04:21]} Qc2 {[%emt 0:00:34]} 12. Nf3 {[%emt 0:03:09]} (12. Qxc2 $142 Bxc2 13. Rc1) 12... Rad8 {[%emt 0:10:25][%cal Oc6d4]} 13. Rd1 {[%emt 0:01:23] [#]} (13. Qc3 $142) 13... Qb3 {[%emt 0:05:55] Black is much more active.} ({Black should play} 13... Qxd2+ $1 $17 14. Rxd2 Na5) 14. Qc3 {[%emt 0:06:23]} Qxc3+ {[%emt 0:03:16]} 15. bxc3 {[%emt 0:00:10]} e5 {[%emt 0:00:48]} 16. Be2 {[%emt 0:00:29]} e4 {[%emt 0:04:35]} ({Better is} 16... b6 $15) 17. Nd2 $11 {[%emt 0:00:22]} Rfe8 {[%emt 0:01:00]} 18. Nb3 {[%emt 0:01:12]} Bc8 {[%emt 0:05:03]} 19. O-O {[%emt 0:00:58]} b6 {[%emt 0:00:27]} 20. Bf4 {[%emt 0:04:39]} Rd7 {[%emt 0:04:17]} 21. c5 {[%emt 0:01:42] [#] Hoping for Bb5.} Ne7 {[%emt 0:01:08]} 22. Bc4 {[%emt 0:02:37]} Bb7 {[%emt 0:00:26]} 23. Bb5 {[%emt 0:01:31]} c6 {[%emt 0:00:27]} 24. Be2 {[%emt 0:01:07]} (24. Bc4 $11) 24... Nd5 $1 $36 {[%emt 0:00:21][%csl LRc3,LRf4][%mdl 2048] Black has some pressure.} 25. Bd2 {[%emt 0:00:53]} e3 {[%emt 0:04:21]} 26. Be1 {[%emt 0:05:10][%mdl 8192]} (26. fxe3 $15 Nxe3 27. Bxe3 Rxe3 28. Bd3) 26... Nf4 $19 {[%emt 0:03:29] Black is clearly winning.} 27. Nc1 {[%emt 0:01:14]} Nxe2+ {[%emt 0:00:30]} (27... exf2+ $2 28. Rxf2 Nxe2+ 29. Rxe2 Rxe2 30. Nxe2 $19) 28. Nxe2 {[%emt 0:00:05]} Ba6 {[%emt 0:00:23] Weighted Error Value: White=0.59/Black=0.18 (very precise) .  Loses game:     	White=1     	---        Mistake:       	White=5     	Black=2      Inaccurate:     	White=2     	Black=3      OK:         	White=5     	Black=6      Best:        	White=1     	Black=4} 0-1

[Event "Seniors-LEM-65 Sachsen-Anhalt 2024"]
[Site "Magdeburg"]
[Date "2024.07.01"]
[Round "1.15"]
[White "Ruether, Rudolf"]
[Black "Boettcher, Frank"]
[Result "1/2-1/2"]
[ECO "A90"]
[WhiteElo "2065"]
[BlackElo "1848"]
[Annotator "TA"]
[PlyCount "89"]
[EventDate "2024.06.25"]
[EventType "swiss"]
[EventCountry "GER"]
[SourceTitle "playchess.com"]
[Source "ChessBase"]
[SourceQuality "1"]
[TimeControl "40/5400+30:1800+30"]

{[%evp 14,89,27,12,18,18,21,23,29,29,30,23,21,24,31,27,35,36,53,51,60,39,46,29,29,34,30,23,21,48,30,7,39,13,72,50,62,63,79,77,72,66,77,59,75,64,56,41,90,88,184,184,158,136,154,102,156,152,211,180,174,74,128,127,128,127,128,127,197,128,163,128,155,109,173,129,154,114]} 1. Nf3 {[%emt 0:00:08]} e6 {[%emt 0:00:05]} 2. g3 {[%emt 0:00:14]} f5 {[%emt 0:00:12]} 3. Bg2 {[%emt 0:01:30]} Nf6 {[%emt 0:00:07]} 4. O-O {[%emt 0:00:39]} d5 {[%emt 0:00:31]} 5. b3 {[%emt 0:03:58]} Bd6 {[%emt 0:00:59]} 6. d4 {[%emt 0:00:40]} O-O {[%emt 0:00:56]} 7. c4 {[%emt 0:00:05]} c6 {[%emt 0:01:29]} 8. Ba3 {[%emt 0:00:16]} b6 {[%emt 0:03:59]} 9. Qc1 {[%emt 0:06:21]} Bb7 {[%emt 0:02:37]} 10. Rd1 {[%emt 0:03:23]} Qe7 {[%emt 0:01:25] White has an edge.} (10... Bxa3 {feels hotter.} 11. Qxa3 Nbd7 12. Qd6 Ne4) 11. Bxd6 {[%emt 0:00:48]} Qxd6 {[%emt 0:00:13]} 12. Nbd2 {[%emt 0:07:09]} Nbd7 {[%emt 0:02:45]} 13. Qb2 {[%emt 0:02:26]} Ng4 {[%emt 0:11:35]} 14. e3 {[%emt 0:04:50]} Rac8 {[%emt 0:12:46]} 15. Rac1 {[%emt 0:05:08]} Rfe8 {[%emt 0:10:57]} 16. b4 {[%emt 0:08:21]} Rb8 {[%emt 0:10:24]} 17. Qc3 {[%emt 0:09:42]} Rbc8 {[%emt 0:06:17]} 18. h3 {[%emt 0:03:12]} Ngf6 {[%emt 0:00:29]} 19. Ne5 {[%emt 0:02:01]} Ne4 {[%emt 0:01:16]} 20. Qb2 {[%emt 0:01:27]} (20. Nxe4 {simplifies} fxe4 21. Nxd7 Qxd7 22. h4) 20... Nxe5 {[%emt 0:03:54]} 21. dxe5 {[%emt 0:02:05]} Qe7 {[%emt 0:00:58]} 22. Nf1 {[%emt 0:06:21]} Ng5 {[%emt 0:00:46]} 23. f4 {[%emt 0:03:16]} Nf7 {[%emt 0:00:19]} (23... Ne4 $11 {remains equal.}) 24. c5 {[%emt 0:01:14]} Ba6 {[%emt 0:04:59]} 25. Nd2 {[%emt 0:01:21]} Qb7 {[%emt 0:02:19]} 26. a3 {[%emt 0:01:32]} Rb8 {[%emt 0:03:34]} 27. Qd4 {[%emt 0:01:48]} Bb5 {[%emt 0:02:01]} 28. Bf3 {[%emt 0:04:16]} Qa6 {[%emt 0:01:52]} 29. Rc3 {[%emt 0:05:11]} Nd8 {[%emt 0:03:06]} 30. g4 {[%emt 0:01:54]} g6 {[%emt 0:00:09]} (30... fxg4 $14 {feels stronger.} 31. hxg4 (31. Bxg4 bxc5 32. Qxc5 Nb7 $14) 31... bxc5 32. Qxc5 Nb7) 31. Kf2 $16 {[%emt 0:00:19] Black is weak on the dark squares} Nb7 {[%emt 0:03:06] [#]} (31... bxc5 $16 32. Qxc5 fxg4) 32. gxf5 $1 $18 {[%emt 0:04:15]} exf5 {[%emt 0:02:26]} 33. cxb6 {[%emt 0:02:05]} Qxb6 {[%emt 0:02:11]} 34. Rdc1 {[%emt 0:00:51]} (34. Nb3 $142) 34... Nd8 {[%emt 0:00:42]} (34... Qxd4 $142 35. exd4 Nd8) 35. Nb3 $16 {[%emt 0:00:46] White is more active.} Ne6 {[%emt 0:00:56]} (35... Re7 $16 {is a better defense.} 36. h4 Kf7) 36. Qxb6 $18 {[%emt 0:01:06]} axb6 {[%emt 0:00:30] [#]} 37. Be2 {[%emt 0:03:56] Inhibits Bc4.} (37. Rxc6 $1 $18 {and the rest is easy.} Bxc6 38. Rxc6) 37... Ba4 {[%emt 0:02:15]} (37... Bxe2 $142 38. Kxe2 c5) 38. Nd4 $16 {[%emt 0:00:26]} Nxd4 {[%emt 0:02:06]} 39. exd4 {[%emt 0:00:06]} Ra8 {[%emt 0:01:37]} 40. h4 {[%emt 0:00:20]} Re6 {[%emt 0:00:39]} (40... h5 $16 {was worth a try.} 41. Rb1 Kf7) 41. Ke3 {[%emt 0:35:02]} (41. Rg3 $18) 41... Kg7 {[%emt 0:01:04]} 42. Bd3 {[%emt 0:00:00]} Re7 {[%emt 0:01:51]} 43. Rg1 {[%emt 0:00:00]} ({Better is} 43. h5) 43... Kf7 {[%emt 0:00:19]} (43... Bb5 $16) 44. Kd2 {[%emt 0:00:00]} Rea7 {[%emt 0:02:03]} 45. Kc1 {[%emt 0:00:00] Weighted Error Value: White=0.16 (very precise) /Black=0.23 (precise) .  Mistake:       	White=4     	Black=8      Inaccurate:     	White=1     	Black=1      OK:         	White=10    	Black=5      Best:        	White=1     	Black=2      Strong:       	White=1     	---} 1/2-1/2

[Event "Seniors-LEM-65 Sachsen-Anhalt 2024"]
[Site "Magdeburg"]
[Date "2024.07.01"]
[Round "1.15"]
[White "Ruether, Rudolf"]
[Black "Boettcher, Frank"]
[Result "*"]
[ECO "A52"]
[WhiteElo "2065"]
[BlackElo "1848"]
[Annotator "RC"]
[PlyCount "34"]
[EventDate "2024.06.25"]
[EventType "swiss"]
[EventCountry "GER"]
[SourceTitle "playchess.com"]
[Source "ChessBase"]
[SourceQuality "1"]
[TimeControl "40/5400+30:1800+30"]

1. d4 {[%emt 0:00:09]} Nf6 {[%emt 1:31:00]} 2. c4 {[%emt 0:00:13]} e5 {[%emt 0:00:09]} 3. dxe5 {[%emt 0:00:56]} Ng4 {[%emt 0:00:07]} 4. Bf4 {[%emt 0:00:24]} Bb4+ {[%emt 0:02:41]} 5. Nd2 {[%emt 0:01:56]} Nc6 {[%emt 0:00:53]} 6. Ngf3 {[%emt 0:00:36]} Qe7 {[%emt 0:00:40]} 7. e3 {[%emt 0:00:54]} Ngxe5 {[%emt 1:29:16]} 8. Be2 {[%emt 0:00:54]} d6 {[%emt 0:01:55]} 9. O-O {[%emt 1:28:58]} a5 {[%emt 0:02:37]} 10. Nb3 {[%emt 1:28:25]} a4 {[%emt 0:03:51]} 11. Nbd4 {[%emt 1:23:25]} O-O {[%emt 1:22:23]} 12. Rc1 {[%emt 1:21:46]} Re8 {[%emt 0:04:17]} 13. Nb5 {[%emt 0:09:58]} Ng6 {[%emt 0:11:28]} 14. Bg3 {[%emt 0:00:59]} f5 {[%emt 0:01:32]} 15. Bd3 {[%emt 0:15:57]} Nce5 {[%emt 0:11:17]} 16. a3 {[%emt 0:11:38]} Bc5 {[%emt 0:55:52]} 17. Nc3 {[%emt 0:02:35]} Bd7 {[%emt 0:00:45]} *

[Event "Seniors-LEM-65 Sachsen-Anhalt 2024"]
[Site "Magdeburg"]
[Date "2024.07.01"]
[Round "1.16"]
[White "Hoelzel, Gerhard"]
[Black "Matthey, Harald"]
[Result "0-1"]
[ECO "A52"]
[WhiteElo "1839"]
[BlackElo "2064"]
[Annotator "TA"]
[PlyCount "56"]
[EventDate "2024.06.25"]
[EventType "swiss"]
[EventCountry "GER"]
[SourceTitle "playchess.com"]
[Source "ChessBase"]
[SourceQuality "1"]
[TimeControl "40/5400+30:1800+30"]

{[%evp 14,56,34,29,35,33,41,7,8,0,0,0,31,0,33,28,72,26,47,0,9,0,28,25,40,18,31,27,52,23,34,23,43,-32,-38,-59,-38,-45,-51,-63,-73,-112,-109,-111,-104]} 1. d4 {[%emt 0:00:09][%cal Bd2d4,Bd4e5][%mdl 32]} Nf6 {[%emt 0:00:14]} 2. c4 {[%emt 0:00:13]} e5 {[%emt 0:00:09]} 3. dxe5 {[%emt 0:00:56]} Ng4 {[%emt 0:00:07]} 4. Bf4 {[%emt 0:00:24]} Bb4+ {[%emt 0:02:41]} 5. Nd2 {[%emt 0:01:56][%cal Bb1d2,Bd2b3,Bb3d4,Bd4b5,Bb5c3,Bc3d5][%mdl 32]} Nc6 {[%emt 0:00:53]} 6. Ngf3 {[%emt 0:00:36]} Qe7 {[%emt 0:00:40]} 7. e3 {[%emt 0:00:54]} Ngxe5 {[%emt 0:00:30]} 8. Be2 {[%emt 0:00:54]} d6 {[%emt 0:01:55]} 9. O-O {[%emt 0:01:03]} a5 {[%emt 0:02:37][%cal Ba7a5,Ba5a4][%mdl 32]} 10. Nb3 {[%emt 0:05:30]} a4 {[%emt 0:03:51] The position is equal.} 11. Nbd4 {[%emt 0:02:09]} O-O {[%emt 0:00:27]} 12. Rc1 {[%emt 0:02:49]} Re8 {[%emt 0:04:17]} 13. Nb5 {[%emt 0:09:58]} Ng6 {[%emt 0:11:28] [#] White must now prevent ...Nxf4.} 14. Bg3 {[%emt 0:00:59]} f5 {[%emt 0:01:32][%cal Of5f4]} 15. Bd3 {[%emt 0:15:57]} (15. a3 $16 Bc5 16. Nc3) 15... Nce5 {[%emt 0:11:17]} 16. a3 {[%emt 0:11:38]} (16. c5 $14 {is more appropriate.}) 16... Bc5 {[%emt 0:01:00]} 17. Nc3 {[%emt 0:02:35]} Bd7 {[%emt 0:00:45]} 18. Nd5 {[%emt 0:01:57]} Qd8 {[%emt 0:01:07]} 19. Be2 {[%emt 0:04:29]} Nxf3+ {[%emt 0:07:48]} 20. Bxf3 {[%emt 0:00:13]} Ne5 {[%emt 0:00:10]} 21. Be2 {[%emt 0:03:54]} Ng6 {[%emt 0:13:58]} 22. Bh5 {[%emt 0:04:32]} Be6 {[%emt 0:02:58]} 23. Bxg6 {[%emt 0:07:43]} (23. Re1 $14) 23... hxg6 $15 {[%emt 0:00:12]} 24. Nf4 {[%emt 0:00:07]} Bf7 {[%emt 0:00:38]} 25. h4 {[%emt 0:00:43]} Re4 {[%emt 0:04:29]} 26. Re1 {[%emt 0:03:13]} g5 $1 {[%emt 0:13:42]} (26... Bxc4 $2 27. Rxc4 (27. Nxg6 Bf7 $11) 27... Rxc4 28. Qd5+ (28. Nxg6 c6 $15) 28... Kh7 29. Qxc4 $18) 27. hxg5 {[%emt 0:02:53]} Qxg5 {[%emt 0:00:12]} (27... Rxc4 $2 28. g6 Qd7 29. gxf7+ $18) 28. Nd3 {[%emt 0:03:56] [#]} Bxe3 $1 {[%emt 0:04:30][%mdl 512] Weighted Error Value: White=0.20 (precise) /Black=0.15 (very precise) .  Mistake:       	White=3     	---        Inaccurate:     	White=4     	Black=4      OK:         	White=4     	Black=5      Strong:       	---       	Black=1} 0-1

[Event "Seniors-LEM-65 Sachsen-Anhalt 2024"]
[Site "Magdeburg"]
[Date "2024.07.01"]
[Round "1.16"]
[White "Hoelzel, Gerhard"]
[Black "Matthey, Harald"]
[Result "*"]
[ECO "A02"]
[WhiteElo "1839"]
[BlackElo "2064"]
[Annotator "RC"]
[PlyCount "40"]
[EventDate "2024.06.25"]
[EventType "swiss"]
[EventCountry "GER"]
[SourceTitle "playchess.com"]
[Source "ChessBase"]
[SourceQuality "1"]
[TimeControl "40/5400+30:1800+30"]

1. f4 {[%emt 0:00:10]} g6 {[%emt 0:00:25]} 2. Nf3 {[%emt 0:00:26]} Bg7 {[%emt 0:00:08]} 3. e3 {[%emt 0:00:16]} b6 {[%emt 0:01:17]} 4. Be2 {[%emt 0:00:15]} Bb7 {[%emt 0:00:17]} 5. O-O {[%emt 0:00:15]} c5 {[%emt 0:01:35]} 6. d3 {[%emt 0:01:04]} d5 {[%emt 0:00:13]} 7. c3 {[%emt 0:01:40]} Nh6 {[%emt 0:02:41]} 8. d4 {[%emt 0:03:36]} O-O {[%emt 0:00:14]} 9. Ne5 {[%emt 0:05:11]} f6 {[%emt 0:03:47]} 10. Ng4 {[%emt 1:22:37]} Nf5 {[%emt 0:00:28]} 11. Na3 {[%emt 0:04:56]} a6 {[%emt 0:04:31]} 12. Nc2 {[%emt 0:00:34]} Nd7 {[%emt 0:02:36]} 13. Bf3 {[%emt 0:06:36]} Nh4 {[%emt 0:06:48]} 14. Be2 {[%emt 0:13:25]} e6 {[%emt 0:06:03]} 15. g3 {[%emt 0:01:17]} Nf5 {[%emt 0:00:09]} 16. Bf3 {[%emt 0:01:15]} Nd6 {[%emt 0:01:57]} 17. Nf2 {[%emt 0:57:01]} Qc7 {[%emt 0:04:10]} 18. Bd2 {[%emt 0:05:03]} e5 {[%emt 0:01:23]} 19. fxe5 {[%emt 0:01:37]} fxe5 {[%emt 0:00:09]} 20. Bg2 {[%emt 0:07:13]} Rae8 {[%emt 0:03:37]} *

[Event "Seniors-LEM-65 Sachsen-Anhalt 2024"]
[Site "Magdeburg"]
[Date "2024.07.01"]
[Round "1.17"]
[White "Pranner, Marion"]
[Black "Roth, Heinz Georg"]
[Result "1/2-1/2"]
[ECO "A02"]
[WhiteElo "2055"]
[BlackElo "1830"]
[Annotator "TA"]
[PlyCount "62"]
[EventDate "2024.06.25"]
[EventType "swiss"]
[EventCountry "GER"]
[SourceTitle "playchess.com"]
[Source "ChessBase"]
[SourceQuality "1"]
[TimeControl "40/5400+30:1800+30"]

{[%evp 9,62,-24,-18,-27,-33,-38,-38,-44,-52,-55,-44,-59,-65,-60,0,-67,-62,-75,-49,-49,-61,-78,-85,-83,-75,-86,-85,-104,-102,-111,-109,-97,-90,-95,-94,-95,-93,-166,-122,-168,-117,-197,-212,-200,-199,-413,-411,-498,-515,-611,-549,-1375,-1320,-1254,-857]} 1. f4 {[%emt 0:00:10]} g6 {[%emt 0:00:25]} 2. Nf3 {[%emt 0:00:26]} Bg7 {[%emt 0:00:08]} 3. e3 {[%emt 0:00:16]} b6 {[%emt 0:01:17]} 4. Be2 {[%emt 0:00:15]} Bb7 {[%emt 0:00:17]} 5. O-O {[%emt 0:00:15]} c5 {[%emt 0:01:35]} 6. d3 {[%emt 0:01:04]} d5 {[%emt 0:00:13]} 7. c3 {[%emt 0:01:40]} Nh6 {[%emt 0:02:41][%cal Bg8h6,Bh6f5,Bf5h4][%mdl 32]} 8. d4 {[%emt 0:03:36] Black is slightly better.} O-O {[%emt 0:00:14]} 9. Ne5 {[%emt 0:05:11]} f6 {[%emt 0:03:47]} 10. Ng4 {[%emt 0:01:03]} Nf5 {[%emt 0:00:28]} 11. Na3 {[%emt 0:04:56]} a6 {[%emt 0:04:31]} (11... Qc8 $15) 12. Nc2 {[%emt 0:00:34]} (12. dxc5 $11 Nd7 (12... bxc5 13. e4 $11) 13. cxb6) 12... Nd7 {[%emt 0:02:36]} 13. Bf3 {[%emt 0:06:36]} Nh4 {[%emt 0:06:48]} 14. Be2 {[%emt 0:13:25]} e6 {[%emt 0:06:03]} 15. g3 {[%emt 0:01:17]} Nf5 {[%emt 0:00:09]} 16. Bf3 {[%emt 0:01:15]} Nd6 {[%emt 0:01:57]} 17. Nf2 {[%emt 0:01:59]} Qc7 {[%emt 0:04:10]} 18. Bd2 {[%emt 0:05:03]} e5 {[%emt 0:01:23]} 19. fxe5 {[%emt 0:01:37]} fxe5 {[%emt 0:00:09]} 20. Bg2 {[%emt 0:07:13]} Rae8 {[%emt 0:03:37]} 21. Nd3 {[%emt 0:19:57]} Rxf1+ {[%emt 0:01:58]} 22. Bxf1 {[%emt 0:05:29]} a5 {[%emt 0:03:48]} 23. Nde1 {[%emt 0:00:48]} (23. Bg2 $17) 23... Nc4 {[%emt 0:02:02]} 24. Rb1 {[%emt 0:00:35]} (24. b3 $17 Nxd2 25. Qxd2) 24... Bh6 {[%emt 0:01:55]} ({Better is} 24... Nf6 $19 {Threatens to win with ...Rf8.} 25. Nd3 e4) 25. b3 {[%emt 0:06:03] [#]} (25. Bc1 $17) 25... Nxd2 $1 $19 {[%emt 0:01:15]} 26. Qxd2 {[%emt 0:00:18]} Nf6 {[%emt 0:10:27]} 27. Ng2 $2 {[%emt 0:01:34]} (27. Bg2) 27... Ne4 {[%emt 0:06:47]} 28. Qe1 {[%emt 0:01:59]} cxd4 {[%emt 0:00:40] Black is clearly winning.} 29. c4 {[%emt 0:02:59]} Ng5 {[%emt 0:08:09]} 30. Qe2 {[%emt 0:02:33] [#] Wards off Nf3+} d3 $1 {[%emt 0:00:41][%mdl 512]} 31. Qxd3 {[%emt 0:01:13]} Nh3+ {[%emt 0:00:35][%mdl 32768] Weighted Error Value: White=0.46/Black=0.11 (very precise) .  Mistake:       	White=5     	Black=2      Inaccurate:     	White=1     	Black=1      OK:         	White=7     	Black=11     Strong:       	---       	Black=1     . An unexpected result.} 1/2-1/2

[Event "Seniors-LEM-65 Sachsen-Anhalt 2024"]
[Site "Magdeburg"]
[Date "2024.07.01"]
[Round "1.18"]
[White "Brandt, Joachim"]
[Black "Krueger, Wolfgang"]
[Result "0-1"]
[ECO "B12"]
[WhiteElo "1829"]
[BlackElo "2054"]
[Annotator "TA"]
[PlyCount "56"]
[EventDate "2024.06.25"]
[EventType "swiss"]
[EventCountry "GER"]
[SourceTitle "playchess.com"]
[Source "ChessBase"]
[SourceQuality "1"]
[TimeControl "40/5400+30:1800+30"]

{[%evp 9,56,37,56,41,56,33,66,64,63,56,93,47,46,-102,-93,-94,-99,-150,-155,-128,-145,-426,-20,-16,101,22,50,41,237,40,45,0,14,-2,-7,-23,-16,-119,-35,-245,-241,-372,-387,-1115,-1115,-1175,-1133,-1380,-1354]} 1. e4 {[%emt 0:00:05]} c6 {[%emt 0:00:14]} 2. d4 {[%emt 0:00:11]} g6 {[%emt 0:00:09]} 3. Bd3 {[%emt 0:01:01]} Bg7 {[%emt 0:00:32]} 4. c3 {[%emt 0:00:12]} d5 {[%emt 0:00:31]} 5. Nd2 {[%emt 0:01:14]} Nh6 {[%emt 0:00:33]} 6. Ne2 {[%emt 0:01:57]} O-O {[%emt 0:03:51]} 7. O-O {[%emt 0:00:50]} Kh8 {[%emt 0:08:27]} 8. Ng3 {[%emt 0:03:28] White is slightly better.} f6 {[%emt 0:03:13]} 9. Nf3 {[%emt 0:02:53]} Nf7 {[%emt 0:00:34]} 10. Be3 {[%emt 0:04:05]} (10. h4 $16) 10... e5 $14 {[%emt 0:03:14]} 11. Qd2 {[%emt 0:06:10]} (11. Qb3 $14 {stays ahead.}) 11... dxe4 $1 $17 {[%emt 0:03:28]} 12. Nxe4 {[%emt 0:00:38]} f5 {[%emt 0:01:35]} 13. Bg5 {[%emt 0:04:02]} (13. Neg5 $142 f4 14. Nxf7+ Rxf7 15. dxe5 fxe3 16. Qxe3) 13... Nxg5 {[%emt 0:03:22]} 14. Nexg5 {[%emt 0:00:55]} e4 {[%emt 0:13:17]} (14... exd4 $2 15. Nxd4 Bxd4 16. cxd4 $18) 15. Nxh7 $2 {[%emt 0:02:15][%mdl 8192]} (15. Qf4 $17 Bf6 (15... exd3 $2 16. Qh4 $18) 16. Qh4) 15... exf3 $2 {[%emt 0:05:18]} ({Better is} 15... Kxh7 $19 16. Ng5+ Kh8) 16. Nxf8 $11 {[%emt 0:00:32]} Qxf8 {[%emt 0:03:32]} (16... Bxf8 $11 {keeps the balance.} 17. Qf4 Nd7 18. Qxf3 (18. gxf3 Nf6 $17) 18... Nf6) 17. Qf4 {[%emt 0:03:07]} (17. Rfe1 $1 $16) 17... Bf6 {[%emt 0:17:19]} 18. Rfe1 {[%emt 0:06:18][%mdl 1024] White has compensation.} ({But not} 18. gxf3 Nd7 $11) 18... Bd7 {[%emt 0:08:05] [#] Inhibits Re8.} ({Black should play} 18... Kg7 $1 $14) 19. Qxf3 $2 {[%emt 0:02:55]} (19. Qc7 $1 $18 {[%cal Rc7b7]} Bc8 20. Re3 (20. gxf3 Nd7 $15)) 19... Qd6 {[%emt 0:02:46]} 20. Re2 {[%emt 0:02:15][%cal Og2g4]} Na6 {[%emt 0:01:21][%cal Bb8a6,Ba6c7,Bc7e6,Be6g5,Bg5h3][%mdl 32]} 21. Rae1 {[%emt 0:00:51]} Nc7 {[%emt 0:01:49]} 22. h4 {[%emt 0:04:15]} Kg7 {[%emt 0:01:31]} 23. h5 {[%emt 0:00:47] [#]} (23. g3 $11 {remains equal.}) 23... Rh8 {[%emt 0:06:08]} (23... Ne6 $1 $17 {Threatens to win with ...Rh8.} 24. Re3 Ng5) 24. g3 $2 {[%emt 0:23:19]} ({Only move:} 24. Qg3 $1 $15 Qxg3 25. fxg3) 24... Rxh5 $19 {[%emt 0:01:01] White must now prevent ...Ne6.} ({Weaker is} 24... gxh5 25. Bxf5 Be8 26. Bd3 $14) 25. Bc2 {[%emt 0:02:27]} (25. Bc4 {might work better.}) 25... Ne6 {[%emt 0:03:11]} 26. Bb3 $2 {[%emt 0:03:29]} (26. Rxe6 Bxe6 27. Bb3) 26... Ng5 {[%emt 0:00:52] Black is clearly winning.} 27. Qg2 {[%emt 0:01:17]} f4 {[%emt 0:00:34]} 28. gxf4 {[%emt 0:03:13]} Nh3+ {[%emt 0:00:18] Weighted Error Value: White=1.14/Black=0.54.  Loses game:     	White=2     	Black=1      Missed win:     	White=1     	Black=1      Mistake:       	White=7     	Black=2      Inaccurate:     	White=1     	Black=3      OK:         	---       	Black=7      Best:        	White=1     	Black=3      Strong:       	---       	Black=1} 0-1

[Event "Seniors-LEM-65 Sachsen-Anhalt 2024"]
[Site "Magdeburg"]
[Date "2024.07.01"]
[Round "1.19"]
[White "Jacob, Helmut"]
[Black "Rausch, Erik"]
[Result "1-0"]
[ECO "B21"]
[WhiteElo "2047"]
[BlackElo "1827"]
[Annotator "RC"]
[PlyCount "39"]
[EventDate "2024.06.25"]
[EventType "swiss"]
[EventCountry "GER"]
[SourceTitle "playchess.com"]
[Source "ChessBase"]
[SourceQuality "1"]
[TimeControl "40/5400+30:1800+30"]

1. e4 {[%emt 0:00:03]} c5 {[%emt 0:00:25]} 2. d3 {[%emt 0:00:04]} Nc6 3. f4 {[%emt 0:00:30]} e6 4. Nf3 {[%emt 0:00:30]} d6 5. Be2 {[%emt 0:00:30]} Qc7 6. O-O {[%emt 0:00:30]} Nge7 7. Qe1 {[%emt 0:00:30]} g6 8. Qc3 {[%emt 0:00:30]} Rg8 9. Qf6 {[%emt 0:00:30]} Bg7 10. Qh4 {[%emt 0:00:30]} h6 11. a4 {[%emt 0:00:30]} Bd7 12. c3 {[%emt 0:00:30]} O-O-O 13. Na3 {[%emt 0:00:30]} a6 14. Be3 {[%emt 0:00:30]} f6 15. Qf2 {[%emt 0:00:30]} f5 16. e5 {[%emt 0:00:30]} dxe5 17. Bxc5 {[%emt 0:00:30]} Rde8 18. Nc4 {[%emt 0:00:30]} Ref8 19. Bd6 {[%emt 0:00:30]} Qd8 20. Nb6+ {[%emt 0:00:30]} 1-0